[Event "Titled Tuesday Blitz May 4 2021"]
[White "Mikhalevski, Victor"]
[Black "Sanal, Vahap"]
[WhiteFideId "2801914"]
[BlackFideId "6300545"]
[WhiteElo "2567"]
[BlackElo "2507"]
[Result "1-0"]
[Round "11"]
[TimeControl "180+1"]
[Date "2021.05.04"]
[WhiteClock "0:01:40"]
[BlackClock "0:00:02"]

1. Nf3 {[%clk 0:03:00]}  Nf6 {[%clk 0:02:59]} 2. g3 {[%clk 0:03:01]}  g6 {[%clk 0:03:00]} 3. Bg2 {[%clk 0:03:01]}  Bg7 {[%clk 0:03:00]} 4. O-O {[%clk 0:03:02]}  O-O {[%clk 0:03:01]} 5. d4 {[%clk 0:03:02]}  d6 {[%clk 0:03:01]} 6. b3 {[%clk 0:03:02]}  c5 {[%clk 0:02:56]} 7. Bb2 {[%clk 0:02:58]}  cxd4 {[%clk 0:02:54]} 8. Nxd4 {[%clk 0:02:58]}  a6 {[%clk 0:02:52]} 9. c4 {[%clk 0:02:57]}  Qc7 {[%clk 0:02:49]} 10. Nc3 {[%clk 0:02:57]}  Nc6 {[%clk 0:02:44]} 11. Rc1 {[%clk 0:02:57]}  Nxd4 {[%clk 0:02:24]} 12. Qxd4 {[%clk 0:02:56]}  Be6 {[%clk 0:02:03]} 13. Rfd1 {[%clk 0:02:55]}  Rfc8 {[%clk 0:02:01]} 14. Nd5 {[%clk 0:02:50]}  Bxd5 {[%clk 0:02:01]} 15. Bxd5 {[%clk 0:02:50]}  Nh5 {[%clk 0:01:53]} 16. Qd2 {[%clk 0:02:50]}  Bxb2 {[%clk 0:01:53]} 17. Qxb2 {[%clk 0:02:50]}  a5 {[%clk 0:01:49]} 18. Bf3 {[%clk 0:02:41]}  Nf6 {[%clk 0:01:48]} 19. Qd2 {[%clk 0:02:38]}  Rab8 {[%clk 0:01:41]} 20. Qe3 {[%clk 0:02:37]}  Kg7 {[%clk 0:01:38]} 21. h4 {[%clk 0:02:35]}  h5 {[%clk 0:01:37]} 22. Kg2 {[%clk 0:02:32]}  b6 {[%clk 0:01:31]} 23. a3 {[%clk 0:02:30]}  Re8 {[%clk 0:01:30]} 24. b4 {[%clk 0:02:29]}  Qc8 {[%clk 0:01:19]} 25. c5 {[%clk 0:02:28]}  dxc5 {[%clk 0:00:51]} 26. bxc5 {[%clk 0:02:26]}  b5 {[%clk 0:00:51]} 27. Qe5 {[%clk 0:02:23]}  b4 {[%clk 0:00:46]} 28. c6 {[%clk 0:02:17]}  b3 {[%clk 0:00:38]} 29. c7 {[%clk 0:02:15]}  Rb6 {[%clk 0:00:34]} 30. Qxa5 {[%clk 0:02:13]}  Ra6 {[%clk 0:00:18]} 31. Qb4 {[%clk 0:02:04]}  Ra7 {[%clk 0:00:18]} 32. Qb6 {[%clk 0:02:03]}  Ra6 {[%clk 0:00:12]} 33. Qb7 {[%clk 0:01:53]}  Rxa3 {[%clk 0:00:05]} 34. Rc3 {[%clk 0:01:44]}  Qe6 {[%clk 0:00:02]} 35. c8=Q {[%clk 0:01:40]}  Rxc8 {[%clk 0:00:02]} 36. Qxc8 {[%clk 0:01:40]} 1-0


[Site "https://www.chess.com"]

[Event "Titled Tuesday Blitz May 4 2021"]
[White "Moore, Nicholas"]
[Black "Arias, Juan Cruz"]
[WhiteFideId "4303709"]
[BlackFideId "118540"]
[WhiteElo "2375"]
[BlackElo "2083"]
[Result "1-0"]
[Round "11"]
[TimeControl "180+1"]
[Date "2021.05.04"]
[WhiteClock "0:00:23"]
[BlackClock "0:00:42"]

1. d4 {[%clk 0:03:00]}  Nf6 {[%clk 0:02:59]} 2. c4 {[%clk 0:03:00]}  c5 {[%clk 0:02:59]} 3. d5 {[%clk 0:03:00]}  e5 {[%clk 0:02:59]} 4. Nc3 {[%clk 0:02:59]}  d6 {[%clk 0:03:00]} 5. g3 {[%clk 0:02:59]}  Nbd7 {[%clk 0:03:01]} 6. Bg2 {[%clk 0:03:00]}  Be7 {[%clk 0:03:01]} 7. Nf3 {[%clk 0:03:00]}  O-O {[%clk 0:03:01]} 8. O-O {[%clk 0:03:00]}  a6 {[%clk 0:03:02]} 9. a4 {[%clk 0:02:45]}  Ne8 {[%clk 0:02:59]} 10. e4 {[%clk 0:02:40]}  b6 {[%clk 0:02:59]} 11. h3 {[%clk 0:02:30]}  Nc7 {[%clk 0:02:59]} 12. Qe2 {[%clk 0:02:29]}  Rb8 {[%clk 0:03:00]} 13. Ra3 {[%clk 0:02:28]}  Re8 {[%clk 0:02:57]} 14. Kh2 {[%clk 0:02:24]}  Bf6 {[%clk 0:02:56]} 15. h4 {[%clk 0:02:20]}  h6 {[%clk 0:02:54]} 16. Bh3 {[%clk 0:02:20]}  Be7 {[%clk 0:02:54]} 17. Ne1 {[%clk 0:02:17]}  Nf6 {[%clk 0:02:54]} 18. Bxc8 {[%clk 0:02:13]}  Qxc8 {[%clk 0:02:55]} 19. Ng2 {[%clk 0:02:09]}  Nd7 {[%clk 0:02:50]} 20. Ne3 {[%clk 0:02:07]}  Bf8 {[%clk 0:02:44]} 21. Nf5 {[%clk 0:02:06]}  Kh7 {[%clk 0:02:43]} 22. Qf3 {[%clk 0:01:58]}  Qd8 {[%clk 0:02:36]} 23. Rb3 {[%clk 0:01:45]}  Qf6 {[%clk 0:02:33]} 24. Rg1 {[%clk 0:01:45]}  g6 {[%clk 0:02:33]} 25. g4 {[%clk 0:01:41]}  gxf5 {[%clk 0:02:30]} 26. exf5 {[%clk 0:01:32]}  Qxh4+ {[%clk 0:02:26]} 27. Kg2 {[%clk 0:01:33]}  Nf6 {[%clk 0:02:09]} 28. Rh1 {[%clk 0:01:15]}  Qxg4+ {[%clk 0:02:09]} 29. Qxg4 {[%clk 0:01:16]}  Nxg4 {[%clk 0:02:09]} 30. Ne4 {[%clk 0:01:16]}  b5 {[%clk 0:01:41]} 31. Rg3 {[%clk 0:01:13]}  bxc4 {[%clk 0:01:30]} 32. Rxg4 {[%clk 0:01:12]}  Nxd5 {[%clk 0:01:30]} 33. Ng5+ {[%clk 0:01:03]}  Kg7 {[%clk 0:01:19]} 34. Ne4+ {[%clk 0:00:28]}  Kh7 {[%clk 0:01:19]} 35. Ng5+ {[%clk 0:00:26]}  Kg8 {[%clk 0:00:57]} 36. Ne6+ {[%clk 0:00:23]}  Kh7 {[%clk 0:00:44]} 37. Nxf8+ {[%clk 0:00:22]}  Rxf8 {[%clk 0:00:42]} 38. Rxh6# {[%clk 0:00:23]} 1-0


[Site "https://www.chess.com"]

[Event "Titled Tuesday Blitz May 4 2021"]
[White "Morris-Suzuki, Sophie"]
[Black "Rorrer, Grayson"]
[WhiteFideId "30922615"]
[BlackFideId "30944996"]
[WhiteElo "2372"]
[BlackElo "2408"]
[Result "0-1"]
[Round "11"]
[TimeControl "180+1"]
[Date "2021.05.04"]
[WhiteClock "0:00:02"]
[BlackClock "0:01:08"]

1. c4 {[%clk 0:03:00]}  e5 {[%clk 0:02:56]} 2. Nc3 {[%clk 0:03:01]}  Bb4 {[%clk 0:02:55]} 3. Qc2 {[%clk 0:03:00]}  Nf6 {[%clk 0:02:52]} 4. Nf3 {[%clk 0:03:01]}  Nc6 {[%clk 0:02:52]} 5. e3 {[%clk 0:03:01]}  d6 {[%clk 0:02:52]} 6. d4 {[%clk 0:02:56]}  O-O {[%clk 0:02:47]} 7. d5 {[%clk 0:02:55]}  Ne7 {[%clk 0:02:45]} 8. Be2 {[%clk 0:02:51]}  Bf5 {[%clk 0:02:44]} 9. Qb3 {[%clk 0:02:46]}  Bxc3+ {[%clk 0:02:43]} 10. Qxc3 {[%clk 0:02:47]}  Ne4 {[%clk 0:02:42]} 11. Qb3 {[%clk 0:02:43]}  Nc5 {[%clk 0:02:42]} 12. Qd1 {[%clk 0:02:43]}  a5 {[%clk 0:02:41]} 13. b3 {[%clk 0:02:42]}  Bg6 {[%clk 0:02:41]} 14. Bb2 {[%clk 0:02:41]}  Nf5 {[%clk 0:02:32]} 15. O-O {[%clk 0:02:37]}  Nh4 {[%clk 0:02:31]} 16. Nxh4 {[%clk 0:02:30]}  Qxh4 {[%clk 0:02:32]} 17. g3 {[%clk 0:02:31]}  Qe7 {[%clk 0:02:31]} 18. a3 {[%clk 0:02:25]}  f5 {[%clk 0:01:58]} 19. b4 {[%clk 0:02:25]}  axb4 {[%clk 0:01:57]} 20. axb4 {[%clk 0:02:26]}  Na6 {[%clk 0:01:58]} 21. Bc3 {[%clk 0:02:22]}  f4 {[%clk 0:01:52]} 22. exf4 {[%clk 0:02:18]}  exf4 {[%clk 0:01:53]} 23. Bd3 {[%clk 0:01:57]}  f3 {[%clk 0:01:38]} 24. Bxg6 {[%clk 0:01:55]}  hxg6 {[%clk 0:01:39]} 25. Qd4 {[%clk 0:01:51]}  Rae8 {[%clk 0:01:29]} 26. Rfe1 {[%clk 0:01:37]}  Qd7 {[%clk 0:01:28]} 27. Qh4 {[%clk 0:01:29]}  Rxe1+ {[%clk 0:01:06]} 28. Rxe1 {[%clk 0:01:28]}  Re8 {[%clk 0:01:06]} 29. Rxe8+ {[%clk 0:01:13]}  Qxe8 {[%clk 0:01:07]} 30. Qd4 {[%clk 0:01:13]}  Qf7 {[%clk 0:01:01]} 31. Qe4 {[%clk 0:01:10]}  Qf5 {[%clk 0:00:41]} 32. Qxf5 {[%clk 0:00:45]}  gxf5 {[%clk 0:00:42]} 33. Kf1 {[%clk 0:00:46]}  g5 {[%clk 0:00:40]} 34. Ke1 {[%clk 0:00:45]}  Kf7 {[%clk 0:00:37]} 35. Kd2 {[%clk 0:00:45]}  g4 {[%clk 0:00:26]} 36. Ke3 {[%clk 0:00:45]}  Nb8 {[%clk 0:00:26]} 37. Kf4 {[%clk 0:00:41]}  Kg6 {[%clk 0:00:26]} 38. c5 {[%clk 0:00:41]}  Nd7 {[%clk 0:00:27]} 39. c6 {[%clk 0:00:36]}  Nb6 {[%clk 0:00:14]} 40. Ke3 {[%clk 0:00:35]}  Nxd5+ {[%clk 0:00:13]} 41. Kd4 {[%clk 0:00:35]}  bxc6 {[%clk 0:00:13]} 42. Bd2 {[%clk 0:00:33]}  Nf6 {[%clk 0:00:11]} 43. Be1 {[%clk 0:00:28]}  Ne4 {[%clk 0:00:11]} 44. Kc4 {[%clk 0:00:26]}  Kf6 {[%clk 0:00:08]} 45. Kd4 {[%clk 0:00:26]}  Ke6 {[%clk 0:00:09]} 46. Ke3 {[%clk 0:00:22]}  Ke5 {[%clk 0:00:07]} 47. h4 {[%clk 0:00:20]}  gxh3 {[%clk 0:00:05]} 48. Kxf3 {[%clk 0:00:20]}  Ng5+ {[%clk 0:00:05]} 49. Ke3 {[%clk 0:00:19]}  h2 {[%clk 0:00:05]} 50. f4+ {[%clk 0:00:19]}  Ke6 {[%clk 0:00:06]} 51. fxg5 {[%clk 0:00:18]}  h1=Q {[%clk 0:00:07]} 52. Bc3 {[%clk 0:00:17]}  Qe4+ {[%clk 0:00:08]} 53. Kd2 {[%clk 0:00:17]}  f4 {[%clk 0:00:09]} 54. gxf4 {[%clk 0:00:17]}  Qxf4+ {[%clk 0:00:09]} 55. Kd3 {[%clk 0:00:17]}  Qxg5 {[%clk 0:00:10]} 56. Kc2 {[%clk 0:00:18]}  Qd5 {[%clk 0:00:11]} 57. Kb2 {[%clk 0:00:18]}  Qb5 {[%clk 0:00:12]} 58. Kc2 {[%clk 0:00:19]}  Qb7 {[%clk 0:00:13]} 59. Kb2 {[%clk 0:00:20]}  Qc8 {[%clk 0:00:13]} 60. Kc2 {[%clk 0:00:21]}  Qd7 {[%clk 0:00:14]} 61. Kb2 {[%clk 0:00:22]}  Qf7 {[%clk 0:00:15]} 62. Kc2 {[%clk 0:00:22]}  Qe8 {[%clk 0:00:16]} 63. Kb2 {[%clk 0:00:23]}  Qd7 {[%clk 0:00:17]} 64. Kc2 {[%clk 0:00:24]}  Qc8 {[%clk 0:00:18]} 65. Kb2 {[%clk 0:00:25]}  Qb7 {[%clk 0:00:19]} 66. Kc2 {[%clk 0:00:26]}  Qa6 {[%clk 0:00:20]} 67. Kb2 {[%clk 0:00:27]}  Qe2+ {[%clk 0:00:20]} 68. Kb3 {[%clk 0:00:27]}  Qf1 {[%clk 0:00:21]} 69. Kb2 {[%clk 0:00:28]}  Qh1 {[%clk 0:00:22]} 70. Kb3 {[%clk 0:00:29]}  Qd5+ {[%clk 0:00:22]} 71. Kb2 {[%clk 0:00:30]}  Qe4 {[%clk 0:00:23]} 72. Kb3 {[%clk 0:00:31]}  Kd5 {[%clk 0:00:23]} 73. Kb2 {[%clk 0:00:31]}  Kc4 {[%clk 0:00:24]} 74. Bd2 {[%clk 0:00:31]}  Qd5 {[%clk 0:00:25]} 75. Bc1 {[%clk 0:00:31]}  Qb5 {[%clk 0:00:26]} 76. Bd2 {[%clk 0:00:31]}  Qa6 {[%clk 0:00:27]} 77. Be1 {[%clk 0:00:32]}  Kb5 {[%clk 0:00:28]} 78. Bc3 {[%clk 0:00:32]}  Qa4 {[%clk 0:00:29]} 79. Bd2 {[%clk 0:00:32]}  d5 {[%clk 0:00:30]} 80. Bc3 {[%clk 0:00:32]}  Ka6 {[%clk 0:00:31]} 81. Bd2 {[%clk 0:00:32]}  Qb5 {[%clk 0:00:32]} 82. Kc3 {[%clk 0:00:32]}  Kb7 {[%clk 0:00:32]} 83. Bc1 {[%clk 0:00:33]}  Kc8 {[%clk 0:00:33]} 84. Bb2 {[%clk 0:00:33]}  Kd7 {[%clk 0:00:34]} 85. Ba3 {[%clk 0:00:33]}  Ke6 {[%clk 0:00:35]} 86. Kb2 {[%clk 0:00:34]}  Kf5 {[%clk 0:00:36]} 87. Kc3 {[%clk 0:00:34]}  Kg6 {[%clk 0:00:37]} 88. Kb2 {[%clk 0:00:35]}  Kh5 {[%clk 0:00:38]} 89. Kc3 {[%clk 0:00:35]}  Kg4 {[%clk 0:00:39]} 90. Kb2 {[%clk 0:00:36]}  Kf3 {[%clk 0:00:40]} 91. Kb3 {[%clk 0:00:36]}  Kg2 {[%clk 0:00:41]} 92. Bb2 {[%clk 0:00:37]}  Kf1 {[%clk 0:00:41]} 93. Bc3 {[%clk 0:00:37]}  Ke2 {[%clk 0:00:42]} 94. Kb2 {[%clk 0:00:37]}  Kd3 {[%clk 0:00:42]} 95. Be1 {[%clk 0:00:36]}  d4 {[%clk 0:00:42]} 96. Kb3 {[%clk 0:00:36]}  Ke4 {[%clk 0:00:43]} 97. Bd2 {[%clk 0:00:36]}  Kd5 {[%clk 0:00:43]} 98. Be1 {[%clk 0:00:37]}  Qc4+ {[%clk 0:00:44]} 99. Kb2 {[%clk 0:00:36]}  Qb5 {[%clk 0:00:45]} 100. Kb3 {[%clk 0:00:35]}  Ke4 {[%clk 0:00:46]} 101. Bd2 {[%clk 0:00:35]}  Ke5 {[%clk 0:00:47]} 102. Kc2 {[%clk 0:00:35]}  Qd5 {[%clk 0:00:48]} 103. Be1 {[%clk 0:00:35]}  Qe4+ {[%clk 0:00:49]} 104. Kd2 {[%clk 0:00:35]}  Qe3+ {[%clk 0:00:49]} 105. Kd1 {[%clk 0:00:35]}  Qb3+ {[%clk 0:00:50]} 106. Ke2 {[%clk 0:00:35]}  Kd5 {[%clk 0:00:50]} 107. Bd2 {[%clk 0:00:34]}  c5 {[%clk 0:00:51]} 108. b5 {[%clk 0:00:33]}  c4 {[%clk 0:00:51]} 109. b6 {[%clk 0:00:34]}  c6 {[%clk 0:00:51]} 110. b7 {[%clk 0:00:34]}  Qb5 {[%clk 0:00:50]} 111. b8=Q {[%clk 0:00:35]}  Qxb8 {[%clk 0:00:51]} 112. Bf4 {[%clk 0:00:35]}  Qb7 {[%clk 0:00:51]} 113. Bd2 {[%clk 0:00:35]}  Qb5 {[%clk 0:00:52]} 114. Kd1 {[%clk 0:00:36]}  Kc5 {[%clk 0:00:53]} 115. Kc2 {[%clk 0:00:37]}  Kb6 {[%clk 0:00:54]} 116. Bc1 {[%clk 0:00:37]}  Ka6 {[%clk 0:00:55]} 117. Kd2 {[%clk 0:00:38]}  d3 {[%clk 0:00:56]} 118. Kc3 {[%clk 0:00:38]}  Kb6 {[%clk 0:00:57]} 119. Be3+ {[%clk 0:00:38]}  Kb7 {[%clk 0:00:58]} 120. Kd4 {[%clk 0:00:38]}  Kc7 {[%clk 0:00:59]} 121. Bd2 {[%clk 0:00:39]}  Kd7 {[%clk 0:01:00]} 122. Bc3 {[%clk 0:00:39]}  Ke6 {[%clk 0:01:00]} 123. Bd2 {[%clk 0:00:38]}  Kf5 {[%clk 0:01:01]} 124. Bc3 {[%clk 0:00:39]}  Kg4 {[%clk 0:01:02]} 125. Bd2 {[%clk 0:00:40]}  Kh3 {[%clk 0:01:03]} 126. Bc3 {[%clk 0:00:41]}  Kg2 {[%clk 0:01:04]} 127. Bd2 {[%clk 0:00:42]}  Kf1 {[%clk 0:01:05]} 128. Bc3 {[%clk 0:00:42]}  Kg2 {[%clk 0:01:06]} 129. Bd2 {[%clk 0:00:43]}  Kh1 {[%clk 0:01:07]} 130. Bc3 {[%clk 0:00:44]}  Qb3 {[%clk 0:01:07]} 131. Bd2 {[%clk 0:00:45]}  Qc2 {[%clk 0:01:06]} 132. Bc3 {[%clk 0:00:45]}  Qb3 {[%clk 0:01:07]} 133. Bd2 {[%clk 0:00:46]}  Kg2 {[%clk 0:01:07]} 134. Bc3 {[%clk 0:00:46]}  Kf3 {[%clk 0:01:08]} 135. Bd2 {[%clk 0:00:46]}  Kg4 {[%clk 0:01:09]} 136. Bc3 {[%clk 0:00:46]}  Kf5 {[%clk 0:01:10]} 137. Bd2 {[%clk 0:00:47]}  Ke6 {[%clk 0:01:10]} 138. Bc3 {[%clk 0:00:47]}  Kd6 {[%clk 0:01:11]} 139. Bd2 {[%clk 0:00:47]}  c5+ {[%clk 0:01:12]} 140. Ke4 {[%clk 0:00:46]}  Qc2 {[%clk 0:01:13]} 141. Bf4+ {[%clk 0:00:45]}  Kc6 {[%clk 0:01:13]} 142. Be3 {[%clk 0:00:44]}  Qd1 {[%clk 0:01:14]} 143. Bf4 {[%clk 0:00:44]}  Qe2+ {[%clk 0:01:15]} 144. Be3 {[%clk 0:00:44]}  Qd1 {[%clk 0:01:16]} 145. Bf4 {[%clk 0:00:44]}  Qa4 {[%clk 0:01:17]} 146. Be3 {[%clk 0:00:44]}  Qa8 {[%clk 0:01:18]} 147. Bxc5 {[%clk 0:00:45]}  Qe8+ {[%clk 0:01:19]} 148. Kd4 {[%clk 0:00:45]}  Qd7+ {[%clk 0:01:18]} 149. Kxc4 {[%clk 0:00:45]}  Qd5+ {[%clk 0:01:18]} 150. Kc3 {[%clk 0:00:44]}  d2 {[%clk 0:01:19]} 151. Be3 {[%clk 0:00:43]}  d1=Q {[%clk 0:01:20]} 152. Bb6 {[%clk 0:00:40]}  Q1d3+ {[%clk 0:01:20]} 153. Kb4 {[%clk 0:00:40]}  Q3b5+ {[%clk 0:01:20]} 154. Ka3 {[%clk 0:00:41]}  Qa6+ {[%clk 0:01:21]} 155. Ba5 {[%clk 0:00:40]}  Qdb5 {[%clk 0:01:21]} 156. Ka2 {[%clk 0:00:39]}  Qc4+ {[%clk 0:01:21]} 157. Kb2 {[%clk 0:00:39]}  Qc8 {[%clk 0:01:22]} 158. Ka3 {[%clk 0:00:39]}  Q8e6 {[%clk 0:01:22]} 159. Bb4 {[%clk 0:00:40]}  Qd3+ {[%clk 0:01:20]} 160. Ka4 {[%clk 0:00:40]}  Qeb3+ {[%clk 0:01:19]} 161. Ka5 {[%clk 0:00:40]}  Qf5+ {[%clk 0:01:18]} 162. Ka6 {[%clk 0:00:39]}  Qc8+ {[%clk 0:01:18]} 163. Ka5 {[%clk 0:00:37]}  Qa4+ {[%clk 0:01:19]} 164. Kxa4 {[%clk 0:00:37]}  Qa6+ {[%clk 0:01:20]} 165. Ba5 {[%clk 0:00:37]}  Qb5+ {[%clk 0:01:19]} 166. Ka3 {[%clk 0:00:37]}  Kc5 {[%clk 0:01:20]} 167. Bc3 {[%clk 0:00:32]}  Kc4 {[%clk 0:01:21]} 168. Bd2 {[%clk 0:00:25]}  Qc6 {[%clk 0:01:22]} 169. Kb2 {[%clk 0:00:22]}  Qe4 {[%clk 0:01:23]} 170. Bc1 {[%clk 0:00:20]}  Qd3 {[%clk 0:01:24]} 171. Ka2 {[%clk 0:00:18]}  Qc2+ {[%clk 0:01:23]} 172. Bb2 {[%clk 0:00:18]}  Qa4+ {[%clk 0:01:24]} 173. Ba3 {[%clk 0:00:15]}  Kb5 {[%clk 0:01:18]} 174. Kb2 {[%clk 0:00:15]}  Ka6 {[%clk 0:01:19]} 175. Ka2 {[%clk 0:00:15]}  Kb7 {[%clk 0:01:20]} 176. Kb2 {[%clk 0:00:15]}  Kc6 {[%clk 0:01:16]} 177. Ka2 {[%clk 0:00:15]}  Kb5 {[%clk 0:01:17]} 178. Kb2 {[%clk 0:00:16]}  Qc4 {[%clk 0:01:18]} 179. Kb1 {[%clk 0:00:13]}  Ka4 {[%clk 0:01:19]} 180. Bb2 {[%clk 0:00:13]}  Kb3 {[%clk 0:01:18]} 181. Ka1 {[%clk 0:00:10]}  Qe4 {[%clk 0:01:19]} 182. Bc1 {[%clk 0:00:09]}  Qd4+ {[%clk 0:01:18]} 183. Kb1 {[%clk 0:00:08]}  Qa7 {[%clk 0:01:19]} 184. Ba3 {[%clk 0:00:04]}  Qg1+ {[%clk 0:01:17]} 185. Bc1 {[%clk 0:00:03]}  Qd1 {[%clk 0:01:18]} 186. Ka1 {[%clk 0:00:03]}  Qc2 {[%clk 0:01:18]} 187. Ba3 {[%clk 0:00:02]}  Qc3+ {[%clk 0:01:16]} 188. Kb1 {[%clk 0:00:02]}  Qa5 {[%clk 0:01:16]} 189. Bc1 {[%clk 0:00:02]}  Qa8 {[%clk 0:01:15]} 190. Bb2 {[%clk 0:00:02]}  Qe4+ {[%clk 0:01:16]} 191. Ka1 {[%clk 0:00:02]}  Qe1+ {[%clk 0:01:16]} 192. Bc1 {[%clk 0:00:02]}  Qc3+ {[%clk 0:01:09]} 193. Kb1 {[%clk 0:00:03]}  Qc2+ {[%clk 0:01:10]} 194. Ka1 {[%clk 0:00:02]}  Qa2# {[%clk 0:01:08]} 0-1


[Site "https://www.chess.com"]

[Event "Titled Tuesday Blitz May 4 2021"]
[White "Najdin, Danil"]
[Black "Wu, Christopher"]
[WhiteFideId "4172426"]
[BlackFideId "2040875"]
[WhiteElo "2193"]
[BlackElo "2610"]
[Result "0-1"]
[Round "11"]
[TimeControl "180+1"]
[Date "2021.05.04"]
[WhiteClock "0:00:02"]
[BlackClock "0:00:29"]

1. e4 {[%clk 0:03:00]}  c5 {[%clk 0:02:59]} 2. Nc3 {[%clk 0:02:59]}  e6 {[%clk 0:02:58]} 3. g3 {[%clk 0:03:00]}  Nc6 {[%clk 0:02:58]} 4. Bg2 {[%clk 0:03:00]}  Be7 {[%clk 0:02:57]} 5. d3 {[%clk 0:02:58]}  Nf6 {[%clk 0:02:58]} 6. f4 {[%clk 0:02:57]}  d6 {[%clk 0:02:57]} 7. Nf3 {[%clk 0:02:56]}  a6 {[%clk 0:02:57]} 8. O-O {[%clk 0:02:53]}  O-O {[%clk 0:02:57]} 9. Bd2 {[%clk 0:02:44]}  b5 {[%clk 0:02:57]} 10. a3 {[%clk 0:02:44]}  Bb7 {[%clk 0:02:57]} 11. f5 {[%clk 0:02:29]}  exf5 {[%clk 0:02:50]} 12. exf5 {[%clk 0:02:29]}  Qd7 {[%clk 0:02:48]} 13. Nh4 {[%clk 0:02:26]}  Ne5 {[%clk 0:02:32]} 14. Bxb7 {[%clk 0:02:14]}  Qxb7 {[%clk 0:02:33]} 15. Bf4 {[%clk 0:02:05]}  Rad8 {[%clk 0:02:23]} 16. h3 {[%clk 0:01:55]}  Rfe8 {[%clk 0:02:21]} 17. Nf3 {[%clk 0:01:48]}  Nxf3+ {[%clk 0:02:02]} 18. Qxf3 {[%clk 0:01:49]}  Qxf3 {[%clk 0:02:00]} 19. Rxf3 {[%clk 0:01:50]}  d5 {[%clk 0:01:58]} 20. g4 {[%clk 0:01:47]}  d4 {[%clk 0:01:57]} 21. Ne4 {[%clk 0:01:26]}  Nxe4 {[%clk 0:01:57]} 22. dxe4 {[%clk 0:01:27]}  Bd6 {[%clk 0:01:46]} 23. Bxd6 {[%clk 0:01:27]}  Rxd6 {[%clk 0:01:47]} 24. Re1 {[%clk 0:01:27]}  f6 {[%clk 0:01:44]} 25. Kf2 {[%clk 0:01:21]}  c4 {[%clk 0:01:43]} 26. a4 {[%clk 0:01:18]}  b4 {[%clk 0:01:34]} 27. b3 {[%clk 0:01:18]}  cxb3 {[%clk 0:01:15]} 28. Rxb3 {[%clk 0:01:13]}  a5 {[%clk 0:01:15]} 29. Rd3 {[%clk 0:01:09]}  Kf7 {[%clk 0:01:14]} 30. Kf3 {[%clk 0:01:08]}  Rc8 {[%clk 0:01:12]} 31. Re2 {[%clk 0:01:08]}  Rc3 {[%clk 0:01:06]} 32. Rd2 {[%clk 0:01:05]}  Rdc6 {[%clk 0:01:03]} 33. Kf4 {[%clk 0:01:02]}  Rxd3 {[%clk 0:01:01]} 34. Rxd3 {[%clk 0:01:03]}  Rxc2 {[%clk 0:01:00]} 35. Rxd4 {[%clk 0:01:04]}  Rc7 {[%clk 0:00:48]} 36. Rd1 {[%clk 0:00:39]}  g5+ {[%clk 0:00:43]} 37. Ke3 {[%clk 0:00:33]}  Rc3+ {[%clk 0:00:43]} 38. Kd4 {[%clk 0:00:25]}  Ke7 {[%clk 0:00:39]} 39. e5 {[%clk 0:00:26]}  fxe5+ {[%clk 0:00:36]} 40. Kxe5 {[%clk 0:00:27]}  Re3+ {[%clk 0:00:36]} 41. Kd5 {[%clk 0:00:23]}  Rxh3 {[%clk 0:00:37]} 42. Kc4 {[%clk 0:00:22]}  Rf3 {[%clk 0:00:37]} 43. Kb5 {[%clk 0:00:20]}  Rf4 {[%clk 0:00:37]} 44. Kxa5 {[%clk 0:00:16]}  Rxg4 {[%clk 0:00:37]} 45. Kb6 {[%clk 0:00:07]}  b3 {[%clk 0:00:33]} 46. a5 {[%clk 0:00:08]}  Kf6 {[%clk 0:00:33]} 47. a6 {[%clk 0:00:03]}  Rb4+ {[%clk 0:00:33]} 48. Kc5 {[%clk 0:00:03]}  Ra4 {[%clk 0:00:33]} 49. Kb5 {[%clk 0:00:03]}  Ra2 {[%clk 0:00:32]} 50. Rd6+ {[%clk 0:00:01]}  Kxf5 {[%clk 0:00:32]} 51. Rb6 {[%clk 0:00:01]}  b2 {[%clk 0:00:30]} 52. Kc4 {[%clk 0:00:02]}  g4 {[%clk 0:00:29]} 53. Kc3 {[%clk 0:00:02]}  g3 {[%clk 0:00:29]} 0-1


[Site "https://www.chess.com"]

[Event "Titled Tuesday Blitz May 4 2021"]
[White "Nitin, S."]
[Black "Vega Gutierrez, Sabrina"]
[WhiteFideId "5018277"]
[BlackFideId "2219026"]
[WhiteElo "2431"]
[BlackElo "2281"]
[Result "1-0"]
[Round "11"]
[TimeControl "180+1"]
[Date "2021.05.04"]
[WhiteClock "0:00:39"]
[BlackClock "0:00:01"]

1. e4 {[%clk 0:03:00]}  c5 {[%clk 0:02:59]} 2. Nf3 {[%clk 0:03:00]}  Nc6 {[%clk 0:02:59]} 3. Bb5 {[%clk 0:02:59]}  e6 {[%clk 0:02:56]} 4. O-O {[%clk 0:02:58]}  Nge7 {[%clk 0:02:54]} 5. c3 {[%clk 0:02:54]}  a6 {[%clk 0:02:52]} 6. Ba4 {[%clk 0:02:53]}  b5 {[%clk 0:02:35]} 7. Bc2 {[%clk 0:02:49]}  d5 {[%clk 0:02:31]} 8. exd5 {[%clk 0:02:48]}  Nxd5 {[%clk 0:02:31]} 9. d4 {[%clk 0:02:49]}  cxd4 {[%clk 0:02:29]} 10. cxd4 {[%clk 0:02:47]}  Be7 {[%clk 0:02:26]} 11. Nc3 {[%clk 0:02:47]}  O-O {[%clk 0:02:21]} 12. Re1 {[%clk 0:02:46]}  Nxc3 {[%clk 0:02:20]} 13. bxc3 {[%clk 0:02:46]}  Bb7 {[%clk 0:02:20]} 14. a4 {[%clk 0:02:43]}  Na5 {[%clk 0:02:08]} 15. axb5 {[%clk 0:02:42]}  axb5 {[%clk 0:02:02]} 16. Qd3 {[%clk 0:02:42]}  g6 {[%clk 0:02:02]} 17. Bh6 {[%clk 0:02:42]}  Re8 {[%clk 0:02:01]} 18. Ne5 {[%clk 0:02:42]}  Bg5 {[%clk 0:01:26]} 19. Bxg5 {[%clk 0:02:11]}  Qxg5 {[%clk 0:01:27]} 20. f3 {[%clk 0:02:12]}  Nc4 {[%clk 0:01:13]} 21. Rxa8 {[%clk 0:01:52]}  Rxa8 {[%clk 0:01:09]} 22. Bb3 {[%clk 0:01:43]}  Nxe5 {[%clk 0:00:54]} 23. dxe5 {[%clk 0:01:44]}  Rd8 {[%clk 0:00:45]} 24. Qe3 {[%clk 0:01:32]}  Qxe3+ {[%clk 0:00:40]} 25. Rxe3 {[%clk 0:01:33]}  Rd2 {[%clk 0:00:38]} 26. h4 {[%clk 0:01:23]}  Kf8 {[%clk 0:00:28]} 27. Kh2 {[%clk 0:01:12]}  Ke7 {[%clk 0:00:27]} 28. Kg3 {[%clk 0:01:12]}  Kd7 {[%clk 0:00:23]} 29. c4 {[%clk 0:01:11]}  b4 {[%clk 0:00:17]} 30. Ba4+ {[%clk 0:01:11]}  Bc6 {[%clk 0:00:16]} 31. Bb5 {[%clk 0:01:11]}  Bxb5 {[%clk 0:00:15]} 32. cxb5 {[%clk 0:01:11]}  Kc7 {[%clk 0:00:15]} 33. Re4 {[%clk 0:01:08]}  Rb2 {[%clk 0:00:13]} 34. Rf4 {[%clk 0:01:05]}  Kb6 {[%clk 0:00:12]} 35. Rxf7 {[%clk 0:01:05]}  b3 {[%clk 0:00:11]} 36. Rd7 {[%clk 0:00:54]}  Re2 {[%clk 0:00:08]} 37. Rd3 {[%clk 0:00:51]}  b2 {[%clk 0:00:06]} 38. Rb3 {[%clk 0:00:51]}  Rd2 {[%clk 0:00:01]} 39. Kh3 {[%clk 0:00:48]}  Re2 {[%clk 0:00:01]} 40. g4 {[%clk 0:00:42]}  Rc2 {[%clk 0:00:01]} 41. Kg3 {[%clk 0:00:42]}  Rd2 {[%clk 0:00:01]} 42. Kf4 {[%clk 0:00:42]}  h5 {[%clk 0:00:01]} 43. Kg5 {[%clk 0:00:39]} 1-0


[Site "https://www.chess.com"]